Cogmind - Beta 13 @@@ ROGUE MODE // 2024.03.12 @ 11:15:18 Player: rCartos Result: Destroyed by G-34 Mercenary with Small Laser Performance ------------- Evolutions (1) 500 Regions Visited (2) 400 Robots Destroyed (27) 135 Value Destroyed (832) 832 Prototype IDs (0) 0 Alien Tech Used (0) 0 Bonus (0) 0 TOTAL SCORE: 1867 Bonus ------- None Cogmind --------- Core Integrity 0/400 Matter 99/300 Energy 100/100 System Corruption 0% Temperature Cool (6) Movement Walking (260) Ox2 Location -9/Materials Parts ------- > --- POWER (1) -------- (None) > --- PROPULSION (4) --- Aluminum Leg Aluminum Leg > --- UTILITY (2) ------ High-capacity Storage Unit > --- WEAPON (2) ------- Spread Laser > --- INVENTORY (20) --- Ion Engine Ion Engine Light Nuclear Core Small Storage Unit Medium Laser Small Laser Particle Gun Spread Laser Assault Rifle Assault Rifle Peak State ------------ > --- POWER ------------ Light Nuclear Core > --- PROPULSION ------- Aluminum Leg Aluminum Leg Aluminum Leg Aluminum Leg > --- UTILITY ---------- High-capacity Storage Unit Sensor Array > --- WEAPON ----------- Assault Rifle Assault Rifle > --- INVENTORY -------- Ion Engine Ion Engine Aluminum Leg Aluminum Leg Small Storage Unit Medium Matter Pod Medium Laser Medium Laser Small Laser Particle Gun [Rating: 12] Favorites ----------- Power Improved Ion Engine Engine Improved Ion Engine Power Core Light Nuclear Core Propulsion Aluminum Leg Leg Aluminum Leg Utility High-capacity Storage Unit Device Sensor Array Storage High-capacity Storage Unit Protection Light Armor Plating Weapon Assault Rifle Energy Gun Medium Laser Ballistic Gun Assault Rifle Launcher Grenade Launcher Build | -11 -10 -9 ------- Run | Yrd Mat Mat Slots Evolved 2 | . . 2 Power . | . . . Propulsion 2 | . . 2 Utility . | . . . Weapon . | . . . Parts Attached 30 | 8 4 18 Power 5 | 1 1 3 Engine 4 | 1 . 3 Core 1 | . 1 . Reactor . | . . . Propulsion 10 | 2 . 8 Treads . | . . . Leg 10 | 2 . 8 Wheel . | . . . Hover . | . . . Flight . | . . . Utility 7 | 3 3 1 Device 1 | . 1 . Storage 5 | 3 1 1 Processor . | . . . Hackware . | . . . Protection 1 | . 1 . Artifact . | . . . Weapon 8 | 2 . 6 Energy Gun 3 | . . 3 Energy Cannon . | . . . Ballistic Gun 2 | 2 . . Ballistic Cannon . | . . . Launcher 3 | . . 3 Special Weapon . | . . . Impact Weapon . | . . . Slashing Weapon . | . . . Piercing Weapon . | . . . Special Melee Weapon . | . . . Unidentified Prototypes . | . . . Parts Lost 14 | . 1 13 Power 2 | . . 2 Propulsion 6 | . . 6 Utility 3 | . 1 2 Weapon 3 | . . 3 Highest Loss Streak 6 | . 1 6 To Critical Strikes . | . . . Average Slot Usage (%) 85 | . 98 77 Engine 7 | . 2 10 Core 4 | . 11 . Leg 27 | . 28 27 Device 2 | . 2 2 Storage 16 | . 14 18 Protection 3 | . 9 . Energy Gun 3 | . . 5 Ballistic Gun 11 | . 28 1 Launcher 6 | . . 10 Naked Turns . | . . . Heaviest Build 55 | 19 52 55 Greatest Support 40 | 20 20 40 Greatest Overweight (x) 16 | . 2 16 Average Overweight (x) 1 | . 1 2 Largest Inventory Capacity 20 | 8 20 20 Average Capacity 18 | 7 17 20 Most Carried 16 | 3 13 16 Average Carried 11 | 2 11 13 Final Capacity 20 | 8 20 20 Final Carried 12 | 3 12 10 Class Distribution -------------------- 100% | Mutant Dominant Class ---------------- Mutant | -10/Materials Mutant | -9/Materials Resources | -11 -10 -9 ----------- Run | Yrd Mat Mat Matter Collected 727 | 337 257 133 Remotely . | . . . Salvage Created 855 | 147 361 347 Parts 51 | 7 19 25 Haulers Intercepted . | . . . Recyclers Shooed 1 | 1 . . Parts Field Recycled . | . . . Retrieved Matter . | . . . Parts Self-Destructed . | . . . Prevented . | . . . Kills | -11 -10 -9 ------- Run | Yrd Mat Mat Combat Hostiles Destroyed 22 | . 8 14 Guns 15 | . 8 7 AOE 7 | . . 7 Classes Destroyed 7 | 3 1 3 Worker 1 | 1 . . Tunneler 2 | 1 . 1 Recycler 1 | 1 . . Watcher 1 | . . 1 Swarmer 4 | . . 4 Grunt 14 | . 8 6 Sentry 4 | . . 4 Best Kill Streak 6 | 2 2 6 Combat Bots Only 5 | . 2 5 Max Kills in Single Turn 3 | 1 1 3 Gunslinging . | . . . Exploded 2 | . . 2 Melee . | . . . Uniques/NPCs Destroyed . | . . . Combat | -11 -10 -9 -------- Run | Yrd Mat Mat Hostile Shots Fired 154 | . 44 110 Missed 41 | . 11 30 Damage Taken 1822 | . 467 1355 Core 485 | . 77 408 Absorbed by Shields . | . . . Core Remaining (%) 84 | 100 69 . Volleys Fired 70 | 7 29 34 Largest 2 | 2 2 2 Hottest 115 | 40 40 115 Shots Fired 128 | 14 58 56 Gun 100 | 14 58 28 Cannon . | . . . Launcher 28 | . . 28 Special . | . . . Kinetic 74 | 14 58 2 Thermal 26 | . . 26 Explosive 28 | . . 28 Electromagnetic . | . . . Robot Hit Streak 12 | 3 6 12 Robot Miss Streak 7 | 3 3 7 Penetration Max . | . . . Secondary Targets 2 | . 1 1 Max Gunslinging Chain 1 | . 1 1 Shots Hit Robots 77 | 6 35 36 Core Hits 63 | 4 17 42 Critical Kills . | . . . Critical Parts Destroyed . | . . . Critical Strikes 1 | . . 1 Burn 1 | . . 1 Melee Attacks . | . . . Impact . | . . . Slashing . | . . . Piercing . | . . . Sneak Attacks . | . . . Combat Hostiles . | . . . Follow-up Attacks . | . . . Damage Inflicted 1449 | 72 437 940 Guns 843 | 72 437 334 Cannons . | . . . Explosions 605 | . . 605 Melee . | . . . Ramming 1 | . . 1 Kinetic 522 | 72 437 13 Thermal 321 | . . 321 Explosive 605 | . . 605 Electromagnetic . | . . . Impact . | . . . Slashing . | . . . Piercing . | . . . Highest Corruption 1 | . 1 . Average Corruption 1 | . 1 . Corruption Purged . | . . . Corruption Blocked . | . . . Effects 2 | . 2 . Message Errors 1 | . 1 . Data Loss (minor) 1 | . 1 . Overload Shots . | . . . Overflow Damage 102 | . . 102 Projectiles . | . . . Explosions 102 | . . 102 Melee . | . . . Knockbacks . | . . . Impact . | . . . Kinetic . | . . . Secondary . | . . . Self-Inflicted Damage 384 | . . 384 Shots 11 | . . 11 Rammed . | . . . Targets Rammed 1 | . . 1 Kicked 1 | . . 1 Crushed . | . . . Highest Temperature 299 | . 11 299 Average Temperature 75 | . 4 108 Received Heat Transfer 651 | . 240 411 Siege Activations . | . . . Robots Corrupted . | . . . Combat Hostiles . | . . . Parts Fried . | . . . Impact Corruptions . | . . . Robots Melted . | . . . Combat Hostiles . | . . . Parts Melted 1 | . . 1 Heat Transferred 679 | . . 679 Parts Sabotaged . | . . . Parts Stolen . | . . . Parts Stripped . | . . . Power Chain Reactions . | . . . Alert | -11 -10 -9 ------- Run | Yrd Mat Mat Peak Influence 326 | 15 164 326 Initial 25 | . 9 25 Average 95 | 3 74 124 Maximum Alert Level 1 | . . 1 Low Security (%) 93 | 100 100 88 Level 1 6 | . . 11 Level 2 . | . . . Level 3 . | . . . Level 4 . | . . . Level 5 . | . . . High Security . | . . . Max Security . | . . . Squads Dispatched 4 | . 2 2 Investigation 2 | . 1 1 Extermination . | . . . Reinforcement 2 | . 1 1 Assault . | . . . Garrison . | . . . Intercept . | . . . Searches Triggered . | . . . Construction Impeded . | . . . Haulers Reinforced . | . . . Active Scanning Responses . | . . . Cargo Convoy Interrupts . | . . . Stealth | -11 -10 -9 --------- Run | Yrd Mat Mat Distress Signals 1 | . 1 . Communications Jammed . | . . . Distress Signals . | . . . Times Spotted 27 | . 10 17 Peak Tracking Total 5 | . 3 5 Tactical Retreats . | . . . Traps | -11 -10 -9 ------- Run | Yrd Mat Mat Traps Triggered 3 | . 2 1 Indirectly . | . . . Trap Hack Attempts . | . . . Triggered . | . . . Disarmed . | . . . Reprogrammed . | . . . Reused . | . . . Traps Extracted . | . . . Installed . | . . . Triggered . | . . . Machines | -11 -10 -9 ---------- Run | Yrd Mat Mat Machines Disabled 6 | . . 6 Max in Single Turn 2 | . . 2 Machines Repaired . | . . . Machines Dismantled . | . . . Machines Sabotaged . | . . . Overloaded Fab Kills . | . . . Hacking | -11 -10 -9 --------- Run | Yrd Mat Mat Machines Accessed 2 | . 1 1 Terminals 2 | . 1 1 Fabricators . | . . . Repair Stations . | . . . Recycling Units . | . . . Scanalyzers . | . . . Garrison Access . | . . . Total Hacks 7 | . 4 3 Successful 4 | . 2 2 Failed 3 | . 2 1 Catastrophic . | . . . Database Lockouts . | . . . Manual 4 | . 1 3 Terminals 7 | . 4 3 Fabricators . | . . . Repair Stations . | . . . Recycling Units . | . . . Scanalyzers . | . . . Garrison Access . | . . . Terminal Hacks 2 | . 1 1 Unreport Threat 1 | . . 1 Zone Layout 1 | . 1 . Fabricator Hacks . | . . . Repair Station Hacks . | . . . Recycling Unit Hacks . | . . . Scanalyzer . | . . . Garrison Access Hacks . | . . . Unauthorized Hacks 2 | . 1 1 Terminals 2 | . 1 1 Botnet 2 | . 1 1 Fabricators . | . . . Repair Stations . | . . . Recycling Units . | . . . Scanalyzers . | . . . Garrison Access . | . . . Data Cores Recovered . | . . . Used . | . . . Hacking Detections 1 | . . 1 Full Trace Events 1 | . . 1 Feedback Events . | . . . Feedback Blocked . | . . . Robot Schematics Acquired . | . . . Robots Built . | . . . Authchips . | . . . Time . | . . . Total Robot Build Rating . | . . . Part Schematics Acquired . | . . . Parts Built . | . . . Authchips . | . . . Time . | . . . Total Part Build Rating . | . . . Parts Repaired . | . . . Time . | . . . Parts Recycled . | . . . Recycled Matter . | . . . Retrieved Matter . | . . . Retrieved Components . | . . . Parts Scanalyzed . | . . . Part Schematics Acquired . | . . . Parts Damaged . | . . . Bothacking | -11 -10 -9 ------------ Run | Yrd Mat Mat Used RIF Installer . | . . . Robots Hacked . | . . . Non-combat . | . . . Combat . | . . . Robot Hacks Applied . | . . . Relay Couplers Released . | . . . Fabnet Peak Effective % . | . . . Robots Rewired . | . . . Allies Hacked . | . . . Hacks Repelled . | . . . Allies | -11 -10 -9 -------- Run | Yrd Mat Mat Total Allies . | . . . Largest Group . | . . . Highest-Rated Group . | . . . Highest-Rated Ally . | . . . Total Orders . | . . . Ally Attacks . | . . . Total Damage . | . . . Kills . | . . . Allies Corrupted . | . . . Allies Melted . | . . . Intel | -11 -10 -9 ------- Run | Yrd Mat Mat Robot Analysis Total . | . . . Derelict Logs Recovered . | . . . Drone Launches . | . . . Drone Recoveries . | . . . Exploration | -11 -10 -9 ------------- Run | Yrd Mat Mat Turns Passed 1353 | 128 488 737 Spaces Moved 487 | 82 172 233 Core 11 | 9 . 2 Treads . | . . . Legs 476 | 73 172 231 Wheels . | . . . Hover . | . . . Flight . | . . . Fastest Speed 50 | 50 120 190 Average Speed 223 | 112 223 263 Slowest Speed 850 | 120 260 850 Overloaded Moves . | . . . Propulsion Burnouts . | . . . Robots Hopped . | . . . Cave-ins Triggered . | . . . Exploration Rate (%) 18 | 4 31 19 Regions Visited 2 Branch Regions . Pre-discovered Areas . | . . . Known Exits Taken . | . . . Unknown Exits Taken 2 | 1 1 . Scrap Searched . | . . . Spaces Dug 64 | . . 64 Terrain Destroyed 186 | . . 186 Melee . | . . . Projectile . | . . . AOE 186 | . . 186 Terrain Rammed . | . . . Walls Destroyed . | . . . Machines Disabled . | . . . Actions | -11 -10 -9 --------- Run | Yrd Mat Mat Total 611 | 101 218 292 Wait . | . . . Move 485 | 81 171 233 Hop . | . . . Pick Up 22 | 4 12 6 Fast Attach 9 | 7 . 2 Attach 10 | 1 1 8 Detach . | . . . Swap 11 | . 3 8 Drop 3 | 1 2 . Fire 70 | 7 29 34 Melee . | . . . Ram . | . . . Kick 1 | . . 1 Crush . | . . . Escape Stasis . | . . . Rewire . | . . . Trap . | . . . Miscellaneous . | . . . Route ------- -11/Scrapyard -10/Materials -9/Materials History --------- Turn | Location | Event 10 | -11/Scrapyard | Discovered new exit (range 16) 129 | -11/Scrapyard | Entered Materials 312 | -10/Materials | Build established: Mutant 572 | -10/Materials | Discovered new exit (range 13) 617 | -10/Materials | Entered another Materials area 617 | -9/Materials | Evolved 2 slots: Propulsion x2 1019 | -9/Materials | Core integrity fell below 50% 1043 | -9/Materials | Lost 6 parts (4n2w) 1301 | -9/Materials | Core integrity fell below 20% 1353 | -9/Materials | Lost 4 parts (1p1n1u1w) 1354 | -9/Materials | Destroyed by G-34 Mercenary with Small Laser Last Messages --------------- Med. Matter Pod destroyed. K-01 Serf collects debris. U-05 Engineer destroyed. Aluminum Leg destroyed. K-01 Serf collects debris. Imp. Ion Engine destroyed. Heat Sink melted. Y-45 Defender destroyed. K-01 Serf collects debris. Med. Laser destroyed. K-01 Serf collects debris. G-34 Mercenary destroyed. K-01 Serf collects debris. G-34 Mercenary destroyed. K-01 Serf collects debris. Kicked U-05 Engineer. K-01 Serf collects debris. Acquired Aluminum Leg. Acquired 28 matter. K-01 Serf collects debris. Map ----- +----------------------------------------------------+ | # ## """ #??????????######???????????????????? | | # """""#??????????# #?????+##???????????? | | """""####???????# #???? #####???????? | | # " ##??????# ##### ??????? | | + ### ###????# #???????????? | | # # ##???# #???????????? | | #### #### # # # ##### * #???????????? | | ######?#### # # * #???????????? | | ???????# # ## # * #???????????? | | ???????## ## #???????????? | | ????????##### # + +???????????? | | ??????????###### # #???????????? | | ???????????????# # % #???????????? | | ???????????????# ## # # #???????????? | | ???????????????# ## #### #???????????? | | ???????????????# ## #??? #???????????? | | ????????????############## #???? #???????????? | | ??????????? | #? # #???? #???????????? | | ??????????? ?? # #????? #???????????? | | #???????" ??" ????""" # #?????? ???????????? | | #???????" "?" ]=????""" # #??????????????????? | | #???????? """ ]?????"""?# #??????????????????? | | ??????????? ?????? ?# #??????????????????? | | #############+########+### #??????????????????? | | !%!%= !u%! #??????????????????? | | [=!* *@ #??????????????????? | | [=| = !k #??????????????????? | | ########################## #??????????????????? | | ??????????????????????????a #??????????????????? | | ?????????????????????????? #??????????????????? | | ?????????????????????????? k #??????????????????? | | ??????????????????????????? g #??????????????????? | | ??????????????????????????? ??????????????????? | | ??????????????????????????? ###?????????????????? | | ??????????????????????????? #???????????????????? | | ???????????????????????????? #???????????????????? | | ???????????????????????????? #???????????????????? | | ???????????????????????????? #???????????????????? | | ????????????????????????????a#???????????????????? | | ?????????????????????????????#???????????????????? | | ?????????????????????????????????????????????????? | | ?????????????????????????????????????????????????? | | ?????????????????????????????????????????????????? | | ?????????????????????????????????????????????????? | | ?????????????????????????????????????????????????? | | ?????????????????????????????????????????????????? | | ?????????????????????????????????????????????????? | | ?????????????????????????????????????????????????? | | ?????????????????????????????????????????????????? | | ?????????????????????????????????????????????????? | +----------------------------------------------------+ Best States ------------- Heat Dissipation 28 Energy Generation 14 Energy Capacity 265 Matter Stores 319 Matter Capacity 400 Sight Range 16 Robot Scan Range 14 Terrain Scan Density 10 Armor Coverage 150 Evasion (%) 55 Item Schematics ----------------- None Robot Schematics ------------------ None Fabricated ------------ Nothing Alien Tech Used ----------------- None Achievements -------------- None Challenges ------------ None Game ------ Seed ThermoelectricCoolingScanner Manual? 0 Play Time 00:15:13 Cumulative 13.2 hours Start 2024.03.12 @ 10:58:20 End 2024.03.12 @ 11:15:18 Sessions 1 Manual Loads 0 Difficulty Rogue Special Mode None Game No. 31 Rogue 31 Adventurer 0 Explorer 0 Win Type - Total 0 Types 0/0/0/0/0/0/0/0/0 Lore% 16 Gallery% 20 Achievement% 16 Wizard Run 0 Options --------- Layout 1 ASCII 0 Keyboard 0 Movement Arrows Keybinds 0 Fullscreen 1 Font 16/Terminus Map View 50x40 Zoom Use 64% Tactical HUD 0 Map Filters NONE Filters NONE Steam 1 RUN: dbe51abd-8e07-44ec-af2d-50722946cab1